Cogmind - Beta 17 @@@ ROGUE MODE // 2026.08.06 @ 19:35:30 Player: Afro Result: Destroyed by Y-45 Defender with Heavy Assault Rifle Performance ------------- Evolutions (0) 0 Regions Visited (3) 600 Robots Destroyed (33) 165 Value Destroyed (636) 636 Prototype IDs (0) 0 Alien Tech Used (0) 0 Bonus (0) 0 TOTAL SCORE: 1401 Bonus ------- None Cogmind --------- Core Integrity 0/250 Matter 8/300 Energy 93/100 System Corruption 1% Temperature Cool (9) Movement Treading (360) Ox2 Location -9/Recycling Parts ------- > --- POWER (1) -------- (None) > --- PROPULSION (2) --- Spiked Treads Aluminum Leg > --- UTILITY (2) ------ High-capacity Storage Unit Medium Armor Plating > --- WEAPON (2) ------- (None) > --- INVENTORY (20) --- Ion Engine Subdweller Power Source Aluminum Leg Aluminum Leg Aluminum Leg Aluminum Leg Structural Scanner Subdweller Optics Signal Interpreter Seismic Detector Core Shielding Medium Armor Plating Assault Rifle Autogun Autogun Mining Laser Scrap Shield Fragment (50) Scrap Shield Fragment (38) Peak State ------------ > --- POWER ------------ Ion Engine > --- PROPULSION ------- Light Treads Spiked Treads > --- UTILITY ---------- High-capacity Storage Unit Medium Armor Plating > --- WEAPON ----------- Autogun Autogun > --- INVENTORY -------- Ion Engine Subdweller Power Source Aluminum Leg Aluminum Leg Aluminum Leg Aluminum Leg Aluminum Leg Structural Scanner Subdweller Optics Signal Interpreter Seismic Detector Core Shielding Medium Armor Plating Medium Armor Plating Assault Rifle Autogun Grenade Launcher Mining Laser Scrap Shield Fragment Scrap Shield Fragment [Rating: 13] Favorites ----------- Power Ion Engine Engine Ion Engine Propulsion Light Treads Treads Light Treads Leg Aluminum Leg Utility High-capacity Storage Unit Device Seismic Detector Storage High-capacity Storage Unit Protection Light Armor Plating Weapon Autogun Energy Gun EM Pulse Gun Ballistic Gun Autogun Launcher Grenade Launcher Special Weapon Mining Laser Build | -11 -10 -10 -9 ------- Run | Yrd Mat Sub Rec Slots Evolved . | . . . . Power . | . . . . Propulsion . | . . . . Utility . | . . . . Weapon . | . . . . Parts Attached 28 | 4 15 8 1 Power 2 | . 1 1 . Engine 2 | . 1 1 . Core . | . . . . Reactor . | . . . . Propulsion 7 | 2 2 3 . Treads 5 | 2 2 1 . Leg 2 | . . 2 . Wheel . | . . . . Hover . | . . . . Flight . | . . . . Utility 9 | 1 5 2 1 Device 1 | 1 . . . Storage 1 | . 1 . . Processor . | . . . . Hackware . | . . . . Protection 7 | . 4 2 1 Artifact . | . . . . Weapon 10 | 1 7 2 . Energy Gun . | . . . . Energy Cannon . | . . . . Ballistic Gun 8 | 1 5 2 . Ballistic Cannon . | . . . . Launcher 1 | . 1 . . Special Weapon 1 | . 1 . . Impact Weapon . | . . . . Slashing Weapon . | . . . . Piercing Weapon . | . . . . Special Melee Weapon . | . . . . Unidentified Prototypes . | . . . . Parts Lost 10 | . 2 5 3 Power 1 | . . 1 . Propulsion 2 | . . 2 . Utility 3 | . 1 1 1 Weapon 4 | . 1 1 2 Highest Loss Streak 3 | . 1 3 2 To Critical Strikes . | . . . . Average Backups 16 | 3 16 17 17 Power 1 | 1 1 1 2 Propulsion 5 | 2 5 4 4 Utility 6 | . 6 6 7 Weapon 3 | . 3 4 4 Tool/Special . | . . . . Unused Backups 23 | 2 10 . 11 Power 2 | . . . 2 Propulsion 6 | . 2 . 4 Utility 10 | . 6 . 4 Weapon 5 | 2 2 . 1 Tool/Special . | . . . . Average Slot Usage (%) 98 | . 99 98 73 Engine 13 | . 14 13 . Treads 26 | . 28 21 14 Leg 1 | . . 6 14 Storage 14 | . 14 14 14 Protection 13 | . 13 13 14 Ballistic Gun 25 | . 27 19 12 Launcher 1 | . . 6 4 Peak Build Rating 13 | 7 12 13 11 Average Rating 9 | 6 9 11 9 On Entrance 9 | 6 7 12 12 Avg Prop Armor Cover (%) 6 | . . 6 6 Naked Turns . | . . . . Heaviest Build 58 | 12 58 58 53 Greatest Support 40 | 40 40 40 20 Greatest Overweight (x) 5 | . 1 5 2 Average Overweight (x) . | . . 1 2 Largest Inventory Capacity 20 | 8 20 20 20 Average Capacity 18 | 8 18 20 20 Most Carried 20 | 5 20 20 19 Average Carried 16 | 3 16 18 18 Final Capacity 20 | 8 20 20 20 Final Carried 20 | 4 20 19 18 Class Distribution -------------------- 100% | Mutant Dominant Class ---------------- Mutant | -10/Materials Mutant | -10/Subcaves Mutant | -9/Recycling Resources | -11 -10 -10 -9 ----------- Run | Yrd Mat Sub Rec Matter Collected 966 | 282 563 121 . Remotely . | . . . . Salvage Created 969 | 134 766 69 . Parts 53 | 6 44 3 . Haulers Intercepted 1 | . 1 . . Recyclers Shooed 3 | 1 2 . . Parts Field Recycled . | . . . . Retrieved Matter . | . . . . Parts Self-Destructed 6 | . . 6 . Prevented . | . . . . Parts Restored . | . . . . Kills | -11 -10 -10 -9 ------- Run | Yrd Mat Sub Rec Combat Hostiles Destroyed 24 | . 20 4 . Guns 23 | . 19 4 . AOE 1 | . 1 . . Classes Destroyed 8 | 3 4 1 . Worker 2 | 1 1 . . Tunneler 2 | 2 . . . Hauler 1 | . 1 . . Recycler 2 | 1 1 . . Turret 1 | . . 1 . Watcher 1 | . 1 . . Swarmer 13 | . 9 4 . Grunt 11 | . 11 . . Best Kill Streak 3 | 2 3 2 . Combat Bots Only 3 | . 3 2 . Max Kills in Single Turn 2 | 1 2 1 . Gunslinging . | . . . . Exploded 1 | . 1 . . Melee . | . . . . Uniques/NPCs Destroyed . | . . . . Combat | -11 -10 -10 -9 -------- Run | Yrd Mat Sub Rec Hostile Shots Fired 275 | . 132 117 26 Missed 92 | . 37 50 5 Hits 183 | . 95 67 21 Projectile 183 | . 95 67 21 Critical Strikes 2 | . . 1 1 Damage Taken 2122 | . 1027 788 307 Core 264 | . 157 89 18 Absorbed by Shields . | . . . . Redirected to Shielding 4 | . . 4 . Core Remaining (%) 100 | 100 . . . Volleys Fired 131 | 8 79 44 . Largest 2 | 2 2 2 . Hottest 100 | 40 100 100 . Shots Fired 244 | 16 155 73 . Gun 232 | 16 152 64 . Cannon . | . . . . Launcher 8 | . 2 6 . Special 4 | . 1 3 . Kinetic 232 | 16 152 64 . Thermal 4 | . 1 3 . Explosive 8 | . 2 6 . Electromagnetic . | . . . . Robot Hit Streak 21 | 4 7 21 . Robot Miss Streak 3 | 3 3 2 . Penetration Max . | . . . . Secondary Targets 1 | . 1 . . Max Gunslinging Chain 1 | . 1 . . Shots Hit Robots 159 | 10 100 49 . Core Hits 58 | 6 42 10 . Critical Kills 1 | . 1 . . Critical Parts Destroyed . | . . . . Critical Strikes 1 | . 1 . . Destroy 1 | . 1 . . Melee Attacks . | . . . . Impact . | . . . . Slashing . | . . . . Piercing . | . . . . Sneak Attacks . | . . . . Combat Hostiles . | . . . . Follow-up Attacks . | . . . . Damage Inflicted 1475 | 99 1162 214 . Guns 1325 | 99 1105 121 . Cannons . | . . . . Explosions 143 | . 50 93 . Melee . | . . . . Ramming 7 | . 7 . . Kinetic 1325 | 99 1105 121 . Thermal . | . . . . Explosive 143 | . 50 93 . Electromagnetic . | . . . . Impact . | . . . . Slashing . | . . . . Piercing . | . . . . Highest Corruption 1 | . 1 1 1 Average Corruption 1 | . 1 1 1 Corruption Purged . | . . . . Corruption Blocked . | . . . . Effects 16 | . 11 4 1 Message Errors 2 | . 2 . . Matter Fused 3 | . 3 . . Heat Flow Errors 1 | . 1 . . Energy Discharges 4 | . 1 2 1 Data Loss (minor) 3 | . 1 2 . Data Loss (major) 1 | . 1 . . Misfires 1 | . 1 . . Weapon Failures 1 | . 1 . . Overload Shots . | . . . . Overflow Damage . | . . . . Projectiles . | . . . . Explosions . | . . . . Melee . | . . . . Knockbacks . | . . . . Impact . | . . . . Kinetic . | . . . . Secondary . | . . . . Self-Inflicted Damage . | . . . . Shots . | . . . . Rammed 2 | . 2 . . Targets Rammed 2 | . 2 . . Kicked . | . . . . Crushed . | . . . . Highest Temperature 202 | . 202 . . Average Temperature 22 | . 22 . . Received Heat Transfer 807 | . 423 294 90 Siege Activations . | . . . . Martial Activations . | . . . . Shielding Activations . | . . . . Robots Disrupted . | . . . . Combat Hostiles . | . . . . Robots Corrupted . | . . . . Combat Hostiles . | . . . . Parts Fried . | . . . . Impact Corruptions . | . . . . Robots Melted . | . . . . Combat Hostiles . | . . . . Parts Melted . | . . . . Heat Transferred . | . . . . Parts Sabotaged . | . . . . Parts Stolen . | . . . . Parts Stripped . | . . . . Power Chain Reactions . | . . . . Alert | -11 -10 -10 -9 ------- Run | Yrd Mat Sub Rec Maximum Alert Level . | . . . . Low Security (%) 100 | 100 100 . 100 Level 1 . | . . . . Level 2 . | . . . . Level 3 . | . . . . Level 4 . | . . . . Level 5 . | . . . . High Security . | . . . . Max Security . | . . . . Peak Influence 158 | 5 158 . 12 Initial 12 | . 3 . 12 Average 39 | 1 42 . 1 Influence Increases 844 | 20 589 235 . Destroy 0b10 Robot/C 500 | . 400 100 . Destroy 0b10 Robot/NC 40 | 20 20 . . Destroy Leader 74 | . 74 . . Successful Hack 39 | . 39 . . Disable Machine 45 | . 45 . . Destroy Structure 11 | . 11 . . Lose Combat Pursuer 135 | . . 135 . Influence Decreases 844 | 15 457 346 26 Entered New Map 82 | . 2 66 14 Time Decay 682 | 15 435 230 2 Lost Part 80 | . 20 50 10 Squads Dispatched 2 | . 2 . . Investigation . | . . . . Extermination . | . . . . Reinforcement 2 | . 2 . . Assault . | . . . . Garrison . | . . . . Intercept . | . . . . Searches Triggered . | . . . . Construction Impeded . | . . . . Haulers Reinforced . | . . . . Active Scanning Responses . | . . . . Cargo Convoy Interrupts . | . . . . Stealth | -11 -10 -10 -9 --------- Run | Yrd Mat Sub Rec Distress Signals 2 | . 2 . . Communications Jammed . | . . . . Distress Signals . | . . . . Times Spotted 44 | . 30 13 1 Peak Tracking Total 5 | . 4 5 1 Tactical Retreats 4 | . . 4 . Traps | -11 -10 -10 -9 ------- Run | Yrd Mat Sub Rec Traps Triggered 1 | . 1 . . Indirectly . | . . . . Trap Hack Attempts . | . . . . Triggered . | . . . . Disarmed . | . . . . Reprogrammed . | . . . . Reused . | . . . . Traps Extracted . | . . . . Installed . | . . . . Triggered . | . . . . Machines | -11 -10 -10 -9 ---------- Run | Yrd Mat Sub Rec Machines Disabled 5 | . 3 2 . Max in Single Turn 2 | . 1 2 . Machines Repaired . | . . . . Machines Dismantled . | . . . . Machines Sabotaged . | . . . . Overloaded Fab Kills . | . . . . Hacking | -11 -10 -10 -9 --------- Run | Yrd Mat Sub Rec Machines Accessed 6 | . 6 . . Terminals 5 | . 5 . . Fabricators . | . . . . Repair Stations . | . . . . Recycling Units 1 | . 1 . . Scanalyzers . | . . . . Garrison Access . | . . . . Total Hacks 18 | . 18 . . Successful 10 | . 10 . . Failed 8 | . 8 . . Catastrophic . | . . . . Database Lockouts . | . . . . Manual 18 | . 18 . . Terminals 16 | . 16 . . Fabricators . | . . . . Repair Stations . | . . . . Recycling Units 2 | . 2 . . Scanalyzers . | . . . . Garrison Access . | . . . . Terminal Hacks . | . . . . Fabricator Hacks . | . . . . Repair Station Hacks . | . . . . Recycling Unit Hacks . | . . . . Scanalyzer . | . . . . Garrison Access Hacks . | . . . . Unauthorized Hacks 10 | . 10 . . Terminals 8 | . 8 . . Botnet 3 | . 3 . . Skim 5 | . 5 . . Fabricators . | . . . . Repair Stations . | . . . . Recycling Units 2 | . 2 . . Reject 1 | . 1 . . Mask 1 | . 1 . . Scanalyzers . | . . . . Garrison Access . | . . . . Data Cores Recovered . | . . . . Used . | . . . . Hacking Detections 6 | . 6 . . Full Trace Events . | . . . . Feedback Events . | . . . . Feedback Blocked . | . . . . Robot Schematics Acquired . | . . . . Robots Built . | . . . . Authchips . | . . . . Time . | . . . . Total Robot Build Rating . | . . . . Part Schematics Acquired . | . . . . Parts Built . | . . . . Authchips . | . . . . Time . | . . . . Total Part Build Rating . | . . . . Part Studies Acquired . | . . . . Parts Repaired . | . . . . Time . | . . . . Parts Recycled . | . . . . Recycled Matter . | . . . . Retrieved Matter . | . . . . Retrieved Components . | . . . . Parts Scanalyzed . | . . . . Part Schematics Acquired . | . . . . Parts Damaged . | . . . . Bothacking | -11 -10 -10 -9 ------------ Run | Yrd Mat Sub Rec Used RIF Installer . | . . . . Robots Hacked . | . . . . Non-combat . | . . . . Combat . | . . . . Robot Hacks Applied . | . . . . Relay Couplers Released . | . . . . Fabnet Peak Effective % . | . . . . Robots Rewired . | . . . . Allies Hacked . | . . . . Hacks Repelled . | . . . . Allies | -11 -10 -10 -9 -------- Run | Yrd Mat Sub Rec Total Allies . | . . . . Largest Group . | . . . . Highest-Rated Group . | . . . . Highest-Rated Ally . | . . . . Total Orders . | . . . . Ally Attacks . | . . . . Total Damage . | . . . . Kills . | . . . . Allies Corrupted . | . . . . Allies Melted . | . . . . Intel | -11 -10 -10 -9 ------- Run | Yrd Mat Sub Rec Active Infowar (turns) 100 | 45 55 . . Seismic 100 | 45 55 . . Robot Analysis Total . | . . . . Derelict Logs Recovered 2 | . . 2 . Drone Launches . | . . . . Drone Recoveries . | . . . . Exploration | -11 -10 -10 -9 ------------- Run | Yrd Mat Sub Rec Turns Passed 2589 | 116 1937 482 54 Spaces Moved 907 | 53 725 114 15 Core . | . . . . Treads 892 | 53 725 99 15 Legs 15 | . . 15 . Wheels . | . . . . Hover . | . . . . Flight . | . . . . Fastest Speed 160 | 160 160 240 360 Average Speed 230 | 160 223 295 360 Slowest Speed 470 | 160 240 470 360 Overloaded Moves . | . . . . Propulsion Burnouts . | . . . . Robots Hopped . | . . . . Potential Cave-ins . | . . . . Cave-ins Triggered . | . . . . Exploration Rate (%) 26 | 4 86 5 11 Regions Visited 3 Branch Regions 2 Pre-discovered Areas 1 | . 1 . . Known Exits Taken 1 | . . 1 . Unknown Exits Taken 2 | 1 1 . . Scrap Searched . | . . . . Spaces Dug . | . . . . Terrain Destroyed 32 | . 9 23 . Melee . | . . . . Projectile . | . . . . AOE 32 | . 9 23 . Terrain Rammed . | . . . . Walls Destroyed . | . . . . Machines Disabled . | . . . . Actions | -11 -10 -10 -9 --------- Run | Yrd Mat Sub Rec Total 1196 | 69 918 192 17 Wait 59 | . 42 17 . Move 904 | 52 724 113 15 Hop . | . . . . Pick Up 35 | 1 30 4 . Fast Attach 3 | 1 2 . . Attach 11 | . 5 5 1 Detach . | . . . . Swap 25 | 4 13 8 . Drop 26 | 3 21 1 1 Fire 131 | 8 79 44 . Melee . | . . . . Ram . | . . . . Kick . | . . . . Crush 2 | . 2 . . Escape Stasis . | . . . . Rewire . | . . . . Trap . | . . . . Miscellaneous . | . . . . Route ------- -11/Scrapyard -10/Materials (discovered 6 exits: *Mat x3 / *Min x2 / [*Sub]) -10/Subcaves -9/Recycling History --------- Turn | Location | Event 15 | -11/Scrapyard | Discovered new exit (range 3) 117 | -11/Scrapyard | Entered Materials 309 | -10/Materials | Build established: Mutant 1057 | -10/Materials | Discovered new exit (range 7) 1139 | -10/Materials | Core integrity fell below 50% 1201 | -10/Materials | Discovered new exit (range 13) 1329 | -10/Materials | Discovered new exit (range 10) 1621 | -10/Materials | Identified exit to Materials 1680 | -10/Materials | Loaded intel: 15 trap records 1800 | -10/Materials | Learned location of 2 exits from Mines 1818 | -10/Materials | Identified exit to Mines 1871 | -10/Materials | Learned Storage stockpile data 1909 | -10/Materials | Learned 4 Recycling zone layouts 2054 | -10/Materials | Entered Subcaves 2056 | -10/Subcaves | Ambushed by Subdwellers from Twisted Machinery 2116 | -10/Subcaves | Core integrity fell below 20% 2134 | -10/Subcaves | Lost 3 parts (1p1n1u) 2146 | -10/Subcaves | Learned Materials interactive machine intel 2190 | -10/Subcaves | Identified exit to Recycling 2303 | -10/Subcaves | Ambushed by Subdweller buried in earth 2536 | -10/Subcaves | Entered Recycling 2590 | -9/Recycling | Destroyed by Y-45 Defender with Heavy Assault Rifle Last Messages --------------- 02401_ Acquired 31 matter. 02408_ Lgt. Treads destroyed. 02423_ Subatomizers dissect the Aluminum Leg. 02447_ Subatomizers dissect the Aluminum Leg, destroying it. 02459_ Subatomizers dissect the Disposable Heat Sink. 02465_ The unstable cave ceiling collapses. 02474_ Subatomizers dissect the Disposable Heat Sink. 02524_ The unstable cave ceiling collapses. LOCATION=RECYCLING GOAL=ESCAPE 02536_ Dropped Ion Engine. Loading 4 Recycling zones... 02540_ Y-45 Defender springs to life. 02541_ Grenade Launcher destroyed. 02550_ System corrupted: Energy discharge (-31). 02584_ Autogun destroyed. 02587_ Med. Armor Plating destroyed. Map ----- +----------------------------------------------------+ | ????????? ###### # #??????????????? | | ????????? ""##"" # #??????????????? | | ????????? Y"##"Y # #??????????????? | | ????????? ""##"" # #??????????????? | | ????????? ###### # #??????????????? | | ????????? ##"""# ##+###########??????????????? | | ????????? ##"Y"# #????????????????????????? | | ????????? #????????????????????????? | | ????????? ##########???????????????? | | ????????? #???????????????? | | ?????????## ##+######## #???????????????? | | ?????????## # ## #???????????????? | | ?????????## # ## #???????????????? | | ????????? # # ## #???????????????? | | ????????? # # """ ## #???????????????? | | ????????? # + """"" ## #???????????????? | | ????????? # # """"" ## #???????????????? | | ????????? # # """"" ## #???????????????? | | ????????? + # """ + #???????????????? | | ????????? # + ## #???????????????? | | ????????? # ########T#### #???????????????? | | ????????? # #??????###??# #???????????????? | | ????????? # #############+#???????????????? | | # # ##??????????????? | | # # r#??????????????? | | ######+##+# Y @ ##??????????????? | | ?????# r # #???????????????? | | ?????# ###############???????????????? | | ?????# #?????????????????????????????? | | ?????# #?????????????????????????????? | | ?????# #####?????????????????????????? | | ?????# #?????????????????????????? | | ?????# * #?????????????????????????? | | ?????# #?????????????????????????? | | ?????#####"Y"### ######?????????????????????????? | | ?????????#"""#?###??????????????????????????????? | | ?????????#####??????????????????????????????????? | | ????????????????????????????????????????????????? | | | | | | | | | | | | | | | | | | | | | | | | | +----------------------------------------------------+ Best States ------------- Heat Dissipation 25 Energy Generation 10 Energy Capacity 250 Matter Stores 300 Matter Capacity 300 Sight Range 16 Terrain Scan Density 10 Armor Coverage 225 Core Shielding 20 Evasion (%) 40 Recoil Reduction 2 Item Schematics ----------------- None Robot Schematics ------------------ None Fabricated ------------ Nothing Repaired ---------- Nothing Studied --------- None Alien Tech Used ----------------- None Achievements -------------- None Challenges ------------ None Game ------ Seed SigixLobotomyDesublimator Manual? 0 Play Time 00:18:59 Cumulative 94.2 hours Start 2026.08.06 @ 19:17:27 End 2026.08.06 @ 19:35:30 Sessions 1 Manual Loads 0 Difficulty Rogue Special Mode None Game No. 73 Rogue 73 Adventurer 0 Explorer 0 Win Type - Total 1 Types 1/0/0/0/0/0/0/0/0/0 Lore% 34 Gallery% 37 Achievement% 29 Wizard Run 0 Options --------- Layout 1 ASCII 0 Keyboard 0 Movement Mouse Keybinds 0 Fullscreen 2 Font 24/Smallcaps Map View 50x35 Zoom Use 0% Tactical HUD 1 Map Filters NONE Filters NONE Steam 1 RUN: bdb6165f-af9d-419b-9643-6c2b6977bed6